bitfinex-derivatives/quotes_ETHF0:USTF0_20250708
["timestamp","ask_amount","ask_price","bid_price","bid_amount"]
[1751997749515,5.11847,2616.8,2616.3,0.76438]
[1751997749713,1.38526478,2616.7,2616.6,0.76432]
[1751997749918,2.14955478,2616.7,2616.6,29.58688937]
[1751997750421,5.35735478,2616.7,2616.6,30.23528937]
[1751997750917,3.97209,2616.7,2616.6,30.99960937]
[1751997751225,3.97209,2616.7,2616.6,30.35120937]
[1751997751418,4.62549,2616.7,2616.6,30.99960937]
[1751997751618,4.62549,2616.7,2616.6,30.23528937]
[1751997751817,4.62549,2616.7,2616.6,28.5964]
[1751997752017,5.62359,2616.7,2616.6,27.948]
[1751997752219,4.8593,2616.7,2616.3,1.46519]
[1751997752520,0.76436,2616.5,2616.4,28.71037]
[1751997752822,0.76436,2616.5,2616.4,29.35877]
[1751997753020,0.76436,2616.5,2616.4,28.71037]
[1751997753419,1.41776,2616.5,2616.4,28.71037]
[1751997753722,1.41776,2616.5,2616.4,29.35877]
[1751997755519,0.7644,2616.4,2616.3,0.76439]
[1751997755725,1.4178,2616.4,2616.3,28.70639]
[1751997756120,1.4178,2616.4,2616.3,29.35479]
[1751997756827,2.4159,2616.4,2616.3,29.35479]
[1751997757527,1.4178,2616.4,2616.3,29.35479]
[1751997757825,1.4178,2616.4,2616.3,30.06129]
[1751997758026,0.76434,2616.6,2616.5,0.76433]
[1751997758229,1.41774,2616.6,2616.5,3.04861937]
[1751997758424,1.41774,2616.6,2616.5,30.98461937]
[1751997758728,2.41584,2616.6,2616.5,28.5844]
[1751997758928,0.76437,2616.4,2616.3,3.10676937]
[1751997759132,0.76443,2616.2,2616.1,0.76444]
[1751997759325,0.76443,2616.2,2615.9,5.07218652]
[1751997759326,0.76446,2616.1,2616.0,1.48177]
[1751997759627,2.41596,2616.1,2616.0,29.41477]
[1751997760325,2.41596,2616.1,2616.0,30.06317]
[1751997761330,2.41596,2616.1,2616.0,29.41477]
[1751997761523,2.41596,2616.1,2616.0,29.41479]
[1751997761830,0.76452,2616.0,2615.9,0.76451]
[1751997762123,1.41792,2616.0,2615.9,29.34591]
[1751997762325,1.41792,2616.0,2615.9,28.69751]
[1751997762525,2.41602,2616.0,2615.9,28.69751]
[1751997762722,1.6515,2616.0,2615.6,3.43629715]
[1751997763025,0.76457,2615.8,2615.7,28.69255]
[1751997763224,1.41797,2615.8,2615.7,29.34095]
[1751997763421,1.41797,2615.8,2615.7,27.928]
[1751997763627,1.41797,2615.8,2615.7,0.6484]
[1751997763827,0.76458,2615.7,2615.6,1.63588937]
[1751997764029,1.41798,2615.7,2615.6,29.56288937]
[1751997764323,2.41608,2615.7,2615.6,1.63588937]
[1751997764628,0.76461,2615.6,2615.5,1.44111]
[1751997764829,1.41801,2615.6,2615.5,30.01551]
[1751997765130,1.41801,2615.6,2615.5,2.08951]
[1751997765330,1.41801,2615.6,2615.5,30.01351]
[1751997765529,2.41611,2615.6,2615.5,30.01351]
[1751997765827,1.41801,2615.6,2615.5,30.01351]
[1751997766127,0.76467,2615.4,2615.3,4.20095715]
[1751997766320,1.41807,2615.4,2615.3,35.15484652]
[1751997766525,1.41807,2615.4,2615.3,6.46818652]
[1751997766724,1.41807,2615.4,2615.3,30.95388937]
[1751997767126,1.41807,2615.4,2615.3,3.03188937]
[1751997767326,2.41617,2615.4,2615.3,0.7476]
[1751997768919,2.41617,2615.4,2615.3,1.5123]
[1751997769232,0.76467,2615.4,2615.3,3.79658937]
[1751997769429,1.41807,2615.4,2615.3,3.79658937]
[1751997770319,1.41807,2615.4,2615.3,2.1607]
[1751997770523,2.41617,2615.4,2615.3,1.396]
[1751997771327,2.42907,2615.4,2615.3,0.7476]
[1751997772131,2.42907,2615.4,2615.3,1.5123]
[1751997772528,1.43097,2615.4,2615.3,1.5123]
[1751997772728,1.43097,2615.4,2615.3,2.189]
[1751997772922,2.39987,2615.4,2615.3,2.189]
[1751997773128,2.39987,2615.4,2615.3,1.5123]
[1751997773325,2.39987,2615.4,2615.3,0.7476]
[1751997773728,2.39987,2615.4,2615.3,1.5123]
[1751997773927,2.39987,2615.4,2615.3,2.189]
[1751997774332,2.39987,2615.4,2615.3,1.4243]
[1751997774531,2.39987,2615.4,2615.3,2.189]
[1751997775327,2.39987,2615.4,2615.3,0.7476]
[1751997775930,3.70797,2615.4,2615.3,0.7476]
[1751997776130,0.76473,2615.2,2615.1,2.40061937]
[1751997776329,1.43103,2615.2,2615.1,3.07731937]
[1751997776729,1.43103,2615.2,2615.1,2.40061937]
[1751997777036,1.43103,2615.2,2615.1,3.07731937]
[1751997777228,0.76473,2615.2,2615.1,3.07731937]
[1751997777435,0.76471,2615.3,2615.2,0.76468]
[1751997777734,1.43101,2615.3,2615.2,1.44138]
[1751997778032,4.1767,2616.2,2615.9,0.76451]
[1751997778234,0.6663,2616.0,2615.9,2.40039937]
[1751997778429,0.6663,2616.0,2615.9,58.88109937]
[1751997778635,1.43081,2616.0,2615.9,58.88109937]
[1751997779034,1.43081,2616.0,2615.9,57.24521]
[1751997779939,0.6663,2616.0,2615.9,57.24521]
[1751997780137,0.76446,2616.1,2616.0,0.76446]
[1751997780435,5.4868,2616.5,2616.0,3.27198937]
[1751997780737,5.4868,2616.5,2616.2,1.63588937]
[1751997780738,0.7644,2616.3,2616.2,1.63588937]
[1751997780934,0.7644,2616.3,2616.2,55.797]
[1751997781331,0.7644,2616.3,2616.2,57.43288937]
[1751997781540,1.4307,2616.3,2616.2,1.63588937]
[1751997781734,0.76443,2616.2,2616.1,0.6574]
[1751997781939,0.76455,2615.9,2615.8,0.76455]
[1751997782335,6.49101,2616.2,2615.7,3.05784937]
[1751997782539,6.49101,2616.2,2615.7,0.6574]
[1751997782540,0.76455,2615.8,2615.7,0.6574]
[1751997782742,0.76455,2615.8,2615.7,29.31398]
[1751997782935,0.76455,2615.8,2615.7,29.99068]
[1751997783338,0.76455,2615.8,2615.7,29.2261]
[1751997783541,0.76455,2615.8,2615.7,1.3341]
[1751997783940,0.76455,2615.8,2615.7,29.2241]
[1751997784135,3.97235,2615.8,2615.7,1.3341]
[1751997784342,3.97235,2615.8,2615.7,0.6767]
[1751997784540,5.93935,2615.8,2615.7,0.6767]
[1751997784739,0.76467,2615.4,2615.3,0.6701]
[1751997784940,0.76467,2615.4,2615.3,29.2338]
[1751997785341,0.76467,2615.4,2615.3,1.3468]
[1751997785639,0.76467,2615.4,2615.3,29.2328]
[1751997786141,0.76467,2615.4,2615.3,1.3468]
[1751997786342,2.39987,2615.4,2615.3,29.2328]
[1751997786844,0.76467,2615.4,2615.3,29.9975]
[1751997787441,3.97246,2615.5,2615.4,0.76467]
[1751997787643,0.76466,2615.5,2615.4,1.44137]
[1751997788243,0.76462,2615.6,2615.5,0.76459]
[1751997788445,0.76464,2615.5,2615.4,4.8475663]
[1751997789140,0.76464,2615.5,2615.4,1.44134]
[1751997789753,0.76464,2615.5,2615.4,29.31834]
[1751997790948,0.76464,2615.5,2615.4,29.31634]
[1751997791337,1.43094,2615.5,2615.4,29.31634]
[1751997791744,0.76464,2615.5,2615.4,28.63964]
[1751997792044,0.76467,2615.4,2615.3,1.43477]
[1751997792345,0.76467,2615.4,2615.3,29.98347]
[1751997793047,1.43097,2615.4,2615.3,29.98347]
[1751997796548,1.43097,2615.4,2615.3,2.11147]
[1751997796750,1.43097,2615.4,2615.3,29.97447]
[1751997799649,0.76467,2615.4,2615.3,1.4348]
[1751997799950,1.43097,2615.4,2615.3,29.2918]
[1751997800145,1.43097,2615.4,2615.3,0.6701]
[1751997800349,1.43097,2615.4,2615.3,29.1998]
[1751997800549,1.43097,2615.4,2615.3,29.9645]
[1751997800749,1.43097,2615.4,2615.3,29.1998]
[1751997801253,2.41187,2615.4,2615.3,1.3116]
[1751997801442,0.76475,2615.1,2615.0,3.2078]
[1751997801641,6.6140263,2615.1,2614.6,3.43629715]
[1751997801841,0.76487,2614.7,2614.6,0.76487]
[1751997802041,0.76487,2614.7,2614.6,1.40637]
[1751997802750,0.76494,2614.6,2614.5,0.76491]
[1751997803054,0.76493,2614.5,2614.4,0.76494]
[1751997803252,1.6538,2614.5,2614.1,3.43629715]
[1751997803446,0.76505,2614.2,2614.1,0.76503]
[1751997803747,3.2078,2614.5,2614.4,0.76496]
[1751997803953,4.65103,2614.5,2614.4,0.76496]
[1751997804653,3.2078,2614.5,2614.4,0.76496]
[1751997804852,3.8861,2614.5,2614.4,1.40646]
[1751997805949,4.65103,2614.5,2614.3,28.60897]
[1751997806158,0.76505,2614.2,2613.8,8.55693715]
[1751997806458,0.76504,2614.2,2614.1,0.76503]
[1751997806645,0.76504,2614.2,2614.1,1.40653]
[1751997806850,0.76504,2614.2,2614.1,0.76503]
[1751997807050,0.76504,2614.2,2614.1,0.6415]
[1751997808855,3.97284,2614.2,2614.1,0.6415]
[1751997809955,0.76504,2614.2,2614.1,1.40655]
[1751997810251,0.76504,2614.2,2614.1,0.6415]
[1751997810452,10.33444,2614.2,2614.1,0.43864509]
[1751997810647,0.76517,2613.8,2613.7,0.76515]
[1751997810845,0.76517,2613.8,2613.7,1.40665]
[1751997811046,0.76517,2613.8,2613.7,0.6415]
[1751997811251,0.76516,2613.7,2613.6,0.76519]
[1751997811446,4.1833,2614.2,2613.7,1.91292]
[1751997811658,0.76511,2614.0,2613.9,2.40427761]
[1751997811853,1.44341,2614.0,2613.9,2.40427761]
[1751997812055,0.76516,2613.7,2613.6,1.40665]
[1751997812260,0.76516,2613.7,2613.6,1.40669]
[1751997812754,2.40435761,2613.7,2613.6,0.6415]
[1751997813154,0.76516,2613.7,2613.6,0.6415]
[1751997813360,0.76516,2613.7,2613.6,57.07367]
[1751997814462,0.76516,2613.7,2613.6,56.3085]
[1751997815052,2.41896,2613.7,2613.6,55.667]
[1751997815258,4.05815761,2613.7,2613.6,55.667]
[1751997815756,4.05815761,2613.7,2612.9,7.39219]
[1751997815757,0.76537,2613.0,2612.9,3.2078]
[1751997815957,0.76537,2613.0,2612.9,28.5954]
[1751997816159,0.76537,2613.0,2612.9,0.7654]
[1751997816357,0.7654,2612.9,2612.8,0.99251366]
[1751997816659,3.2078,2613.0,2612.0,1.63919761]
[1751997816858,1.91337,2613.1,2612.4,3.41391817]
[1751997816859,0.76547,2612.7,2612.4,3.41391817]
[1751997817052,0.6642,2613.2,2612.2,2.5748]
[1751997817053,0.76524,2613.5,2613.4,0.76524]
[1751997817256,0.76522,2613.5,2613.4,4.17914817]
[1751997817456,0.6783,2613.5,2613.3,55.654]
[1751997817758,2.88837,2613.8,2613.7,0.76516]
[1751997817759,0.9755,2613.8,2613.7,0.76516]
[1751997817964,0.9755,2613.8,2613.4,0.76525]
[1751997817965,0.76519,2613.7,2613.6,55.66]
[1751997818164,2.41894,2613.8,2613.7,0.76516]
[1751997818361,4.1833,2614.3,2613.9,0.76508]
[1751997818563,0.76505,2614.1,2614.0,1.42588]
[1751997818955,0.9755,2614.3,2614.0,1.42588]
[1751997819157,0.9755,2614.7,2614.6,0.7649]
[1751997819358,0.9755,2614.7,2614.6,56.4189]
[1751997820058,2.2714,2615.6,2615.0,0.76477]
[1751997820254,0.76473,2615.2,2615.1,55.65]
[1751997820456,0.6783,2615.2,2615.1,56.41475]
[1751997820659,3.2078,2615.5,2615.1,55.65]
[1751997820862,0.76463,2615.6,2615.3,0.76467]
[1751997821059,1.2959,2615.9,2615.5,3.2078]
[1751997821362,0.76445,2616.2,2615.9,0.76451]
[1751997821663,0.76445,2616.2,2615.9,56.40251]
[1751997821856,4.5037,2616.4,2615.9,57.04401]
[1751997822057,4.5037,2616.4,2616.0,0.76449]
[1751997822260,3.2078,2616.4,2616.2,0.76443]
[1751997822456,2.2465,2616.7,2616.2,27.817]
[1751997822862,0.76433,2616.6,2616.3,0.76438]
[1751997823062,3.97207,2616.8,2616.6,0.76431]
[1751997823362,0.76427,2616.8,2616.5,31.78813]
[1751997823563,0.76424,2616.9,2616.6,0.76431]
[1751997823761,1.271,2617.1,2616.7,0.9889]
[1751997824066,1.271,2617.1,2616.5,3.2078]
[1751997824256,0.76423,2616.9,2616.8,27.807]
[1751997824660,0.76427,2616.8,2616.5,3.97213]
[1751997824857,0.76429,2616.7,2616.6,27.806]
[1751997825062,1.271,2617.1,2616.6,28.7949]
[1751997825363,0.76425,2616.9,2616.6,32.97311817]
[1751997825564,0.76426,2616.8,2616.6,32.97311817]
[1751997825766,0.76426,2616.8,2616.6,5.16711817]
[1751997825957,0.76426,2616.8,2616.7,27.804]
[1751997826562,5.5289,2617.2,2616.7,27.804]
[1751997826763,4.1833,2617.5,2616.9,3.41391817]
[1751997827071,3.97187,2617.5,2617.3,0.7641]
[1751997827268,0.76408,2617.5,2617.3,0.7641]
[1751997827463,2.3211,2617.8,2617.3,0.7641]
[1751997827665,0.76408,2617.5,2617.4,0.76408]
[1751997827964,0.76408,2617.5,2617.2,27.794]
[1751997828166,1.3456,2617.8,2617.2,27.794]
[1751997828471,0.76399,2617.8,2617.3,3.41391817]
[1751997828774,0.76399,2617.7,2617.6,0.76401]
[1751997828967,0.76402,2617.6,2617.5,28.55604]
[1751997829463,0.76402,2617.6,2617.5,27.792]
[1751997829865,0.76402,2617.6,2617.5,28.4335]
[1751997830164,0.9755,2618.0,2617.6,0.764]
[1751997830370,0.76402,2617.6,2617.5,3.8493]
[1751997830570,0.76401,2617.7,2617.6,0.76402]
[1751997830774,0.76402,2617.6,2617.5,32.39434]
[1751997831265,0.76402,2617.6,2617.5,31.75284]
[1751997831465,1.3595,2618.0,2617.6,0.76402]
[1751997831665,0.76399,2617.7,2617.5,34.40271817]
[1751997831870,1.43659,2617.7,2617.6,0.6355]
[1751997832274,0.76402,2617.6,2617.5,27.778]
[1751997832570,1.43661,2617.7,2617.5,28.4135]
[1751997832769,0.6726,2617.7,2617.5,28.4135]
[1751997832969,1.43662,2617.7,2617.6,0.76402]
[1751997833270,0.76402,2617.6,2617.5,29.17754]
[1751997833467,0.76402,2617.6,2617.5,32.38534]
[1751997833975,0.76411,2617.3,2617.2,2.0606]
[1751997834171,5.32380817,2617.9,2617.3,0.76411]
[1751997834172,0.7641,2617.4,2617.3,0.76411]
[1751997834366,0.7641,2617.4,2617.3,29.16761]
[1751997834566,0.7641,2617.4,2617.3,29.16661]
[1751997835761,3.2078,2617.7,2617.4,0.76407]
[1751997835762,0.76408,2617.5,2617.4,0.76407]
[1751997835961,0.76408,2617.5,2617.4,1.39957]
[1751997836167,0.76402,2617.7,2617.6,0.76402]
[1751997836367,0.76399,2617.8,2617.7,0.76398]
[1751997836570,0.76399,2617.8,2617.7,1.39948]
[1751997836769,0.76399,2617.8,2617.7,28.3955]
[1751997837168,6.14708,2618.6,2617.7,29.3489]
[1751997837368,0.76388,2618.1,2618.0,4.17780817]
[1751997837568,0.76388,2618.1,2618.0,32.57130817]
[1751997838265,3.19141,2618.4,2618.0,31.80741817]
[1751997838468,5.1172,2618.6,2618.0,32.76081817]
[1751997838673,5.1172,2618.6,2618.1,0.76387]
[1751997838674,0.76387,2618.2,2618.1,0.76387]
[1751997838872,0.76387,2618.2,2618.1,1.39937]
[1751997839173,0.76384,2618.3,2618.2,0.76383]
[1751997839368,1.43644,2618.3,2618.2,1.39933]
[1751997839567,1.43644,2618.3,2618.2,0.6355]
[1751997839763,0.76384,2618.3,2618.2,0.6355]
[1751997840170,1.43644,2618.3,2618.2,1.39935]
[1751997840371,1.43644,2618.3,2618.2,0.6355]
[1751997840567,1.43644,2618.3,2618.2,1.39935]
[1751997841275,0.76384,2618.3,2618.2,27.746]
[1751997841475,0.76388,2618.1,2618.0,0.76389]
[1751997841670,0.76387,2618.2,2618.1,0.76386]
[1751997841870,0.76387,2618.2,2618.1,1.39936]
[1751997842072,0.76387,2618.2,2618.1,2.35276]
[1751997842674,1.43647,2618.2,2618.1,1.39936]
[1751997842878,0.76391,2618.0,2617.9,0.6737]
[1751997843067,0.76397,2617.9,2617.8,0.76394]
[1751997843271,0.76397,2617.9,2617.8,28.50194]
[1751997843470,0.76397,2617.9,2617.8,30.09084]
[1751997844474,0.76397,2617.9,2617.8,0.6355]
[1751997844674,0.6726,2617.9,2617.6,0.659]
[1751997844973,0.76399,2617.7,2617.6,1.42302]
[1751997845172,0.76399,2617.7,2617.6,29.79052]
[1751997845377,0.76399,2617.7,2617.6,2.05852]
[1751997845572,1.43659,2617.7,2617.6,29.78952]
[1751997845877,1.90982,2618.0,2617.7,0.76396]
[1751997845878,0.76398,2617.8,2617.7,0.76396]
[1751997846178,0.76398,2617.8,2617.7,29.13049]
[1751997846378,1.43658,2617.8,2617.7,28.3665]
[1751997846771,1.43658,2617.8,2617.7,29.13049]
[1751997846977,1.43658,2617.8,2617.7,28.3665]
[1751997847478,1.7025,2617.8,2617.5,55.033]
[1751997847678,0.76405,2617.5,2617.4,0.76407]
[1751997847879,0.76405,2617.5,2617.4,29.12557]
[1751997848075,1.43665,2617.5,2617.4,29.12557]
[1751997848575,6.14739,2618.2,2617.4,29.3149]
[1751997848771,0.76394,2618.0,2617.9,0.76391]
[1751997849177,1.43654,2618.0,2617.9,0.76391]
[1751997849785,1.43654,2618.0,2617.8,27.723]
[1751997849786,0.76394,2617.9,2617.8,27.723]
[1751997850169,0.76394,2617.9,2617.8,28.48697]
[1751997851176,6.14737,2618.2,2618.1,0.76388]
[1751997851177,4.2377,2618.2,2618.1,0.76388]
[1751997851374,3.97165,2618.2,2618.1,29.11838]
[1751997851575,1.43645,2618.2,2618.1,27.719]
[1751997851878,0.76388,2618.1,2618.0,0.76389]
[1751997852074,0.76388,2618.1,2618.0,28.47789]
[1751997852274,1.43648,2618.1,2618.0,28.47789]
[1751997852478,1.43648,2618.1,2618.0,29.11339]
[1751997852676,0.76397,2617.9,2617.8,0.76393]
[1751997852878,0.76394,2617.9,2617.8,28.3495]
[1751997853081,0.76394,2617.9,2617.8,0.6355]
[1751997853275,0.76394,2617.9,2617.8,29.11147]
[1751997853475,0.76394,2617.9,2617.8,28.3475]
[1751997853878,1.43654,2617.9,2617.8,29.11147]
[1751997854277,1.43654,2617.9,2617.8,1.39947]
[1751997854480,1.43654,2617.9,2617.8,29.10947]
[1751997854980,1.43654,2617.9,2617.8,28.3455]
[1751997855170,2.81972288,2617.9,2617.8,29.10947]
[1751997856070,2.81972288,2617.9,2617.8,0.6355]
[1751997856278,2.81972288,2617.9,2617.8,28.3425]
[1751997856481,2.81972288,2617.9,2617.8,29.10647]
[1751997857178,2.81972288,2617.9,2617.8,28.3425]
[1751997857778,2.81972288,2617.9,2617.8,0.6355]
[1751997857979,0.76397,2617.8,2617.7,27.698]
[1751997858285,4.19785288,2617.8,2617.7,28.3335]
[1751997858581,4.19785288,2617.8,2617.7,28.46199]
[1751997858781,0.76399,2617.7,2617.6,0.764]
[1751997858981,2.81977288,2617.7,2617.6,28.462]
[1751997859174,2.81977288,2617.7,2617.6,29.0975]
[1751997859984,2.81977288,2617.7,2617.6,0.764]
[1751997860177,2.81977288,2617.7,2617.6,1.3995]
[1751997860380,2.81977288,2617.7,2617.6,29.1368]
[1751997861384,2.83547288,2617.7,2617.6,29.1368]
[1751997862879,2.83547288,2617.7,2617.6,28.3678]
[1751997863079,2.83547288,2617.7,2617.6,0.6798]
[1751997863279,2.83547288,2617.7,2617.6,1.44382]
[1751997864878,2.14717288,2617.7,2617.6,1.44382]
[1751997865485,2.83547288,2617.7,2617.6,1.44382]
[1751997865686,2.14717288,2617.7,2617.6,1.44382]
[1751997865980,1.38318288,2617.7,2617.6,1.44382]
[1751997866584,1.38318288,2617.7,2617.6,2.46742]
[1751997867383,3.2078,2617.9,2617.8,0.76397]
[1751997867587,5.28318837,2617.9,2617.8,1.44377]
[1751997868386,6.04712837,2617.9,2617.8,1.44377]
[1751997868786,2.83932837,2617.9,2617.8,1.44377]
[1751997869286,1.38708837,2617.9,2617.8,5.88128817]
[1751997869687,1.38708837,2617.9,2617.8,7.16608817]
[1751997870583,0.76378,2618.5,2617.8,7.16608817]
[1751997870584,3.4286869,2618.5,2618.4,0.76379]
[1751997870776,3.4286869,2618.6,2618.5,0.76376]
[1751997870986,3.4286869,2618.6,2618.5,1.44356]
[1751997871283,4.1169869,2618.6,2618.5,0.6798]
[1751997871584,4.8807169,2618.6,2618.5,28.3448]
[1751997871785,0.76382,2618.3,2618.2,1.78742]
[1751997871979,0.76381,2618.4,2618.3,0.76379]
[1751997874185,0.76381,2618.4,2618.2,29.3624]
[1751997874186,0.76382,2618.3,2618.2,1.7034]
[1751997874383,5.32559,2618.5,2618.2,29.3574]
[1751997874584,3.97159,2618.5,2618.4,0.76379]
[1751997875088,4.65989,2618.5,2618.4,1.44359]
[1751997875287,3.2078,2618.5,2618.4,1.44359]
[1751997875485,0.76371,2618.8,2618.7,0.76368]
[1751997875789,1.45201,2618.8,2618.7,0.76368]
[1751997876188,4.65981,2618.8,2618.7,0.76368]
[1751997876887,0.7637,2618.7,2618.6,28.41271]
[1751997877087,1.452,2618.7,2618.6,29.09251]
[1751997877592,0.7637,2618.7,2618.6,29.09251]
[1751997877793,1.452,2618.7,2618.6,29.09251]
[1751997878189,1.452,2618.7,2618.6,1.44351]
[1751997878390,1.452,2618.7,2618.6,29.08351]
[1751997878591,9.8994769,2619.1,2618.8,0.76363]
[1751997878592,0.76366,2618.9,2618.8,0.76363]
[1751997878890,0.76363,2619.1,2619.0,0.76361]
[1751997879088,3.4286869,2619.2,2619.1,0.76359]
[1751997879288,1.45186,2619.2,2619.1,1.44339]
[1751997879495,3.4286869,2619.3,2619.2,0.76356]
[1751997879684,4.1921769,2619.5,2619.2,31.04991817]
[1751997880195,3.4286869,2619.6,2619.5,0.76347]
[1751997880394,0.76349,2619.5,2619.4,0.76349]
[1751997880589,3.4286869,2619.6,2619.5,0.76347]
[1751997880789,4.1169869,2619.6,2619.5,28.39347]
[1751997880986,4.1921269,2619.6,2619.5,28.39347]
[1751997881193,3.4286869,2619.7,2619.6,0.76344]
[1751997881399,3.4286869,2619.7,2619.6,1.44324]
[1751997881697,8.98860535,2620.0,2619.7,0.76341]
[1751997881698,3.4286869,2619.8,2619.7,0.76341]
[1751997881899,3.4286869,2619.9,2619.8,0.76338]
[1751997882093,4.1169869,2619.9,2619.8,0.76338]
[1751997882293,3.4286869,2619.9,2619.8,0.76338]
[1751997882598,5.48710514,2619.9,2619.8,0.76338]
[1751997882994,4.79880514,2619.9,2619.8,1.44318]
[1751997883194,2.05841824,2619.9,2619.8,1.44318]
[1751997883493,2.82176824,2619.9,2619.8,1.44318]
[1751997883994,2.05841824,2619.9,2619.8,4.85709817]
[1751997884199,2.05841824,2619.9,2619.8,32.47409817]
[1751997884590,1.37011824,2619.9,2619.8,33.49769817]
[1751997884795,3.2078,2620.0,2619.9,0.76335]
[1751997884997,1.36637626,2620.0,2619.9,0.76335]
[1751997885695,3.4286869,2620.5,2620.4,0.76321]
[1751997885890,0.76321,2620.4,2620.3,27.613]
[1751997886096,0.76324,2620.3,2620.2,0.6574]
[1751997886296,0.76324,2620.3,2620.2,28.2694]
[1751997886495,0.76324,2620.3,2620.2,29.03266]
[1751997886695,3.97098,2620.5,2620.4,0.76321]
[1751997886894,3.4286869,2620.8,2620.3,5.32198817]
[1751997887196,0.76314,2620.7,2620.6,0.76313]
[1751997887406,1.45144,2620.7,2620.6,0.76313]
[1751997887603,0.76315,2620.6,2620.5,28.36816]
[1751997887799,0.6883,2620.7,2620.3,3.2078]
[1751997888005,0.76318,2620.5,2620.4,27.605]
[1751997888204,0.6883,2620.5,2620.2,0.6574]
[1751997888404,3.2078,2620.6,2620.5,0.76318]
[1751997888604,0.76312,2620.7,2620.6,0.76315]
[1751997888805,1.45142,2620.7,2620.6,28.36415]
[1751997889109,0.76318,2620.5,2620.4,0.6798]
[1751997889305,0.76317,2620.6,2620.5,0.76315]
[1751997889512,0.7631,2620.8,2620.7,0.76309]
[1751997889701,1.3228,2621.2,2620.7,5.11731817]
[1751997889904,0.76306,2621.0,2620.9,0.76304]
[1751997890104,1.45136,2621.0,2620.9,1.44284]
[1751997890502,0.76302,2621.1,2621.0,0.76303]
[1751997890807,1.39322,2621.1,2621.0,0.76303]
[1751997892011,1.39322,2621.1,2621.0,1.45593]
[1751997892413,0.6302,2621.1,2621.0,30.06953]
[1751997892708,1.3932,2621.1,2621.0,28.35303]
[1751997892908,1.3932,2621.1,2621.0,29.04593]
[1751997893112,0.6302,2621.1,2621.0,29.04593]
[1751997893316,3.97079,2621.2,2621.1,0.763]
[1751997893611,0.76306,2621.0,2620.9,0.76303]
[1751997893908,0.76306,2621.0,2620.9,29.03693]
[1751997894107,0.76301,2621.1,2621.0,0.76303]
[1751997894706,0.76303,2621.0,2620.9,0.6929]
[1751997894912,0.76303,2621.0,2620.9,1.45596]
[1751997895208,0.6302,2621.1,2621.0,0.76303]
[1751997895209,1.39323,2621.1,2621.0,0.76303]
[1751997895810,0.76303,2621.1,2621.0,0.76303]
[1751997896011,1.39323,2621.1,2621.0,0.76303]
[1751997896413,0.76303,2621.0,2620.9,0.76303]
[1751997896610,0.76303,2621.0,2620.9,1.45593]
[1751997897314,0.76299,2621.3,2621.2,0.76295]
[1751997897507,0.763,2621.1,2621.0,28.9749]
[1751997897711,1.3932,2621.1,2621.0,28.2619]
[1751997898109,2.7049,2621.1,2621.0,28.2619]
[1751997898509,3.6816,2621.1,2621.0,28.2619]
[1751997898711,0.76312,2620.7,2620.6,2.38212]
[1751997898911,3.97087,2620.9,2620.8,0.76309]
[1751997899112,3.97087,2620.9,2620.8,1.45599]
[1751997899518,3.97086,2620.9,2620.8,1.45599]
[1751997899717,4.60106,2620.9,2620.8,29.01899]
[1751997900016,1.39326,2620.9,2620.8,29.01899]
[1751997900618,1.39326,2620.9,2620.8,1.45599]
[1751997900916,0.6302,2620.9,2620.8,1.45599]
[1751997901315,0.76306,2620.9,2620.8,0.76309]
[1751997901514,1.39326,2620.9,2620.8,1.45599]
[1751997901816,0.76306,2620.9,2620.8,1.45599]
[1751997902017,0.6302,2620.9,2620.8,1.45599]
[1751997902416,3.2078,2621.2,2621.1,0.763]
[1751997902616,1.39317,2621.2,2621.1,1.4559]
[1751997905816,0.6302,2621.2,2621.1,0.6929]
[1751997906016,0.6302,2621.2,2621.1,1.4559]
[1751997906422,1.39317,2621.2,2621.1,1.4559]
[1751997906615,5.92077,2621.2,2621.1,1.4559]
[1751997909821,10.1578,2621.2,2620.6,1.90782]
[1751997910020,0.76309,2620.9,2620.8,0.76306]
[1751997910522,0.76305,2621.0,2620.9,0.76302]
[1751997910723,3.2078,2621.2,2621.1,0.763]
[1751997910915,3.97077,2621.2,2621.1,0.763]
[1751997911120,3.2078,2621.2,2621.1,0.763]
[1751997911322,3.97077,2621.2,2621.1,0.763]
[1751997911527,0.76309,2620.9,2620.8,0.76309]
[1751997911826,0.76309,2620.9,2620.5,0.76315]
[1751997911827,0.76318,2620.6,2620.5,0.76315]
[1751997912028,3.97098,2620.6,2620.5,0.76315]
[1751997912721,0.76318,2620.5,2620.4,28.29219]
[1751997912919,3.2078,2620.6,2620.2,0.6783]
[1751997912920,0.76324,2620.4,2620.2,0.6783]
[1751997913124,0.76324,2620.3,2620.2,1.44154]
[1751997913724,2.0267,2620.5,2620.4,0.76321]
[1751997914124,2.6569,2620.5,2620.4,0.76321]
[1751997914427,1.39338,2620.5,2620.4,1.45611]
[1751997915119,0.76318,2620.5,2620.4,1.45611]
[1751997915325,3.2078,2620.6,2620.5,0.76318]
[1751997915624,4.60115,2620.6,2620.5,1.45608]
[1751997916630,3.838,2620.6,2620.5,1.45608]
[1751997917426,4.60115,2620.6,2620.5,1.45608]
[1751997917629,3.838,2620.6,2620.5,1.45608]
[1751997917928,0.6302,2620.6,2620.5,1.45608]
[1751997918323,1.39335,2620.6,2620.5,1.45608]
[1751997918523,0.76315,2620.6,2620.5,1.45608]
[1751997918724,0.9767,2620.8,2620.3,27.524]
[1751997919028,0.76324,2620.4,2620.3,28.27821]
[1751997919623,0.76324,2620.4,2620.3,28.97111]